fUSD/lending_fUSD_20260318
["ID","MTS","AMOUNT","RATE_DAILY","PERIOD"]
[408518219,1773811833267,-174.53371913,0.00015954,2]
[408518220,1773811833276,-674.83,0.00015969,2]
[408518221,1773811833285,-2500.0,0.00015992,2]
[408518222,1773811833295,-2225.85435073,0.00016,2]
[408518223,1773811833304,-1000.0,0.00016003,2]
[408518224,1773811833313,-1000.0,0.00016003,2]
[408518225,1773811833322,-1000.0,0.00016003,2]
[408518226,1773811833332,-182.0,0.00016007,2]
[408518227,1773811833341,-600.0,0.00016029,2]
[408518228,1773811833350,-500.0,0.00016029,2]
[408518229,1773811833359,-549.02,0.0001604,2]
[408518230,1773811833370,-500.0,0.0001604,2]
[408518231,1773811833379,-600.0,0.00016081,2]
[408518232,1773811833388,-600.0,0.00016081,2]
[408518233,1773811833397,-155.6385228,0.00016089,2]
[408518234,1773811833407,-19877.1938863,0.00016092,2]
[408518235,1773811833417,-1013.6703677,0.00016092,2]
[408518236,1773811833426,-166.3735859,0.00016092,2]
[408518237,1773811833436,-3639.7211232,0.00016092,2]
[408518238,1773811833450,-3613.5018183,0.00016092,2]
[408518239,1773811833459,-150.0,0.00016097,2]
[408518240,1773811833468,-295.39810934,0.00016097,2]
[408518241,1773811833479,-152.85404086,0.00016097,2]
[408518242,1773811833488,-150.0,0.00016097,2]
[408518243,1773811833498,-500.0,0.00016099,2]
[408518244,1773811833507,-508.81226464,0.00016099,2]
[408518245,1773811833517,-592469.77452943,0.000161,2]
[408518246,1773811833530,-41113.98462171,0.000161,2]
[408518247,1773811833557,-5000.00113981,0.000161,2]
[408518248,1773811833572,-11573.8290262,0.000161,2]
[408518249,1773811833587,-1611.15630401,0.000161,2]
[408518255,1773811838388,-500.0,0.00014829,3]
[408518256,1773811838397,-1524.0807559,0.00016096,2]
[408518257,1773811838408,-1960.16996012,0.00016096,2]
[408518258,1773811838516,-500.0,0.00016096,2]
[408518261,1773811841185,-648.63378932,0.00016096,2]
[408518262,1773811841195,-309.29256635,0.000161,2]
[408518265,1773811843340,-155.62552517,0.00016097,2]
[408518266,1773811843350,-17906.73099504,0.000161,2]
[408518267,1773811843397,-2000.1049965,0.000161,2]
[408518268,1773811843474,-108.86998362,0.000161,2]
[408518269,1773811846263,-150.0,0.00016097,2]
[408518270,1773811846280,-159.85491393,0.00016097,2]
[408518271,1773811846294,-150.0,0.00016097,2]
[408518272,1773811846313,-42.14508607,0.000161,2]
[408518273,1773811846329,-8868.3485628,0.000161,2]
[408518276,1773812015756,204.5,0.00032877,120]
[408518277,1773812026706,10000.0,0.00032877,120]
[408518278,1773812288368,164.18,7.489e-05,2]
[408518286,1773813031387,-495.3577,0.00014519,2]
[408518287,1773813031397,-152.72,0.00014777,2]
[408518288,1773813031406,-64.672305,0.00014856,2]
[408518289,1773813031447,-128.32110244,0.00014856,2]
[408518290,1773813031456,-94416.0606,0.00014868,2]
[408518291,1773813031466,-192.99340744,0.00014912,2]
[408518292,1773813031475,-2500.0,0.00014956,2]
[408518293,1773813031484,-2845.72168013,0.00014968,2]
[408518294,1773813031494,-192.99340744,0.00014968,2]
[408518295,1773813031503,-2477.14,0.00014978,2]
[408518296,1773813031513,-250.0,0.00015,2]
[408518297,1773813031522,-198.52,0.00015046,2]
[408518298,1773813031532,-2797.78,0.00015046,2]
[408518299,1773813031541,-1002.07601724,0.00015055,2]
[408518300,1773813031550,-300.0,0.00015055,2]
[408518301,1773813031559,-272959.298,0.00015056,2]
[408518302,1773813031568,-196.47,0.00015068,2]
[408518303,1773813031577,-391.0,0.00015144,2]
[408518304,1773813031587,-500.0,0.00015256,2]
[408518305,1773813031596,-1100.0,0.00015256,2]
[408518306,1773813031606,-1300.0,0.00015256,2]
[408518307,1773813031615,-2845.7216801,0.00015294,2]
[408518308,1773813031624,-151.0,0.00015294,2]
[408518310,1773813031634,-158.34833909,0.00015294,2]
[408518312,1773813031644,-795.0,0.00015449,2]
[408518314,1773813031655,-795.0,0.00015489,2]
[408518316,1773813031664,-2845.7216801,0.0001562,2]
[408518318,1773813031673,-2634.0,0.000159,2]
[408518320,1773813031683,-10070.5903,0.00015903,2]
[408518321,1773813031692,-2845.7216801,0.00015945,2]
[408518323,1773813031704,-1216.725,0.00015954,2]
[408518325,1773813031714,-195.0,0.00015971,2]
[408518327,1773813031724,-166.37,0.00015977,2]
[408518329,1773813031733,-158.41441499,0.00015996,2]
[408518331,1773813031743,-500.0,0.00015996,2]
[408518333,1773813031753,-500.0,0.00015996,2]
[408518336,1773813031763,-500.0,0.00015996,2]
[408518337,1773813031772,-500.0,0.00015996,2]
[408518340,1773813031782,-500.0,0.00015996,2]
[408518341,1773813031792,-500.0,0.00015996,2]
[408518342,1773813031801,-500.0,0.00015996,2]
[408518343,1773813031811,-500.0,0.00015996,2]
[408518344,1773813031820,-500.0,0.00015996,2]
[408518345,1773813031831,-500.0,0.00015996,2]
[408518346,1773813031840,-500.0,0.00015996,2]
[408518347,1773813031850,-500.0,0.00015996,2]
[408518348,1773813031860,-500.0,0.00015996,2]
[408518349,1773813031870,-500.0,0.00015996,2]
[408518350,1773813031883,-500.0,0.00015996,2]
[408518351,1773813031894,-500.0,0.00015996,2]
[408518352,1773813031904,-500.0,0.00015996,2]
[408518353,1773813031913,-500.0,0.00015996,2]
[408518354,1773813031923,-500.0,0.00015996,2]
[408518355,1773813031933,-500.0,0.00015996,2]
[408518356,1773813031943,-500.0,0.00015996,2]
[408518357,1773813031952,-500.0,0.00015996,2]
[408518358,1773813031961,-500.0,0.00015996,2]
[408518359,1773813031971,-500.0,0.00015996,2]
[408518360,1773813031982,-500.0,0.00015996,2]
[408518361,1773813031992,-500.0,0.00015996,2]
[408518362,1773813032001,-500.0,0.00015996,2]
[408518363,1773813032010,-500.0,0.00015996,2]
[408518364,1773813032020,-500.0,0.00015996,2]
[408518365,1773813032030,-500.0,0.00015996,2]
[408518366,1773813032039,-500.0,0.00015996,2]
[408518367,1773813032048,-500.0,0.00015996,2]
[408518368,1773813032058,-500.0,0.00015996,2]
[408518369,1773813032068,-500.0,0.00015996,2]
[408518370,1773813032078,-500.0,0.00015996,2]
[408518371,1773813032088,-500.0,0.00015996,2]
[408518372,1773813032098,-500.0,0.00015996,2]
[408518373,1773813032108,-321.97475629,0.00015996,2]
[408518374,1773813032118,-500.0,0.00015996,2]
[408518375,1773813032128,-500.0,0.00015996,2]
[408518376,1773813032138,-500.0,0.00015996,2]
[408518377,1773813032147,-500.0,0.00015996,2]
[408518378,1773813032156,-500.0,0.00015996,2]
[408518379,1773813032166,-500.0,0.00015996,2]
[408518380,1773813032175,-500.0,0.00015996,2]
[408518381,1773813032185,-500.0,0.00015996,2]
[408518382,1773813032196,-500.0,0.00015996,2]
[408518383,1773813032209,-500.0,0.00015996,2]
[408518384,1773813032221,-500.0,0.00015996,2]
[408518385,1773813032231,-500.0,0.00015996,2]
[408518386,1773813032241,-500.0,0.00015996,2]
[408518387,1773813032251,-550.0,0.00015996,2]
[408518388,1773813032261,-259.82094409,0.00015999,2]
[408518389,1773813032271,-310.54751259,0.00016,2]
[408518390,1773813032280,-2000.0,0.00016,2]
[408518391,1773813032290,-2797.78,0.0001609,2]
[408518392,1773813032299,-197.86840182,0.00016092,2]
[408518393,1773813032308,-624.36,0.00016096,2]
[408518394,1773813032318,-167.7953477,0.00016097,2]
[408518395,1773813032420,-3187.1031382,0.00016097,2]
[408518396,1773813032431,-151.43930188,0.00016097,2]
[408518397,1773813032440,-152.15385338,0.00016097,2]
[408518398,1773813032449,-150.0,0.00016097,2]
[408518399,1773813032458,-150.0,0.00016097,2]
[408518400,1773813032467,-500.0,0.00016097,2]
[408518401,1773813032476,-150.0,0.00016097,2]
[408518402,1773813032486,-500.0,0.00016097,2]
[408518403,1773813032495,-500.0,0.00016097,2]
[408518404,1773813032503,-150.0,0.00016097,2]
[408518405,1773813032512,-550.79970363,0.00016097,2]
[408518406,1773813032522,-500.0,0.00016097,2]
[408518407,1773813032531,-504.32218719,0.00016097,2]
[408518408,1773813032540,-213.8915456,0.00016097,2]
[408518409,1773813032550,-500.0,0.00016097,2]
[408518410,1773813032559,-500.0,0.00016097,2]
[408518411,1773813032568,-434.47795526,0.00016097,2]
[408518412,1773813032577,-150.0,0.00016097,2]
[408518413,1773813032586,-150.0,0.00016097,2]
[408518414,1773813032595,-150.0,0.00016097,2]
[408518415,1773813032605,-158.80130543,0.00016097,2]
[408518416,1773813032614,-4261.7293131,0.00016097,2]
[408518417,1773813032623,-2305.18154495,0.000161,2]
[408518418,1773813032636,-5037.23698796,0.000161,2]
[408518419,1773813032647,-2544.98701204,0.000161,2]
[408518420,1773813032659,-528.24124224,0.000161,2]
[408518421,1773813032670,-2018.50212326,0.000161,2]
[408518422,1773813032690,-882.31924771,0.000161,2]
[408518423,1773813032704,-14364.64376061,0.000161,2]
[408518424,1773813032720,-554.44043766,0.000161,2]
[408518425,1773813032731,-2600.0,0.000161,2]
[408518426,1773813032742,-296.348,0.000161,2]
[408518433,1773813037577,-759.99366507,0.00014956,2]
[408518434,1773813037688,-767.54052114,0.00014956,2]
[408518470,1773813039995,-641.3636,0.00014956,2]
[408518606,1773813042435,-1974.45881379,0.00014956,2]
[408518607,1773813042445,-27769.9799,0.00014956,2]
[408518608,1773813042455,-173.02,0.00016084,2]
[408518609,1773813042464,-124127.06165996,0.000161,2]
[408518610,1773813042492,-316.220239,0.000161,2]
[408518611,1773813042503,-3078.89820875,0.000161,2]
[408518612,1773813042660,-327.365286,0.000161,2]
[408518613,1773813042672,-344.0,0.000161,2]
[408518617,1773813045417,-12279.45352763,0.000161,2]
[408518618,1773813045428,-9350.06150136,0.000161,2]
[408518619,1773813045439,-28228.45205218,0.000161,2]
[408518620,1773813045450,-204000.0,0.000161,2]
[408518621,1773813045639,-1222.0,0.000161,2]
[408518622,1773813045698,-549.84815319,0.000161,2]
[408518624,1773813045935,-111177.90333043,0.000161,2]
[408518625,1773813083210,312.10318944,0.0001,2]
[408518626,1773813755767,10000.01,9.5e-05,3]
[408518627,1773813755795,5000.01,9.5e-05,3]
[408518628,1773813755827,1741.12838713,9.5e-05,3]
[408518629,1773813755857,12493.48251487,9.5e-05,3]
[408518646,1773813855061,1422.9,0.00011507,2]
[408518647,1773813856663,500.0,0.00032877,120]
[408518648,1773813862835,500.0,0.00032877,120]
[408518649,1773813881609,508.2,0.00032877,120]
[408518660,1773814231685,-166.66,0.00013246,2]
[408518661,1773814231695,-568.1647469,0.00013471,2]
[408518662,1773814231704,-166.66,0.00013525,2]
[408518663,1773814231713,-2000.0,0.00013594,2]
[408518664,1773814231723,-200.0,0.00013615,2]
[408518665,1773814231732,-376.47598672,0.00013639,2]
[408518666,1773814231743,-1123.52401328,0.00013639,2]
[408518667,1773814231752,-166.66,0.00013804,2]
[408518668,1773814231764,-191.80033306,0.00013938,2]
[408518669,1773814231775,-1200.0,0.00014037,2]
[408518670,1773814231785,-300.0,0.00014037,2]
[408518671,1773814231906,-300.0,0.00014038,2]
[408518672,1773814231916,-12839.06813073,0.00014039,2]
[408518673,1773814231928,-938.55,0.00014039,2]
[408518674,1773814231939,-1715.35927846,0.00014039,2]
[408518675,1773814231950,-14803.40259081,0.00014039,2]
[408518676,1773814231961,-1301.52,0.00014077,2]
[408518677,1773814231971,-166.66,0.00014083,2]
[408518678,1773814231980,-500.0,0.00014096,2]
[408518679,1773814231990,-162.36,0.00014122,2]
[408518680,1773814232000,-152.0,0.00014196,3]
[408518681,1773814232010,-150.0,0.00014233,2]
[408518682,1773814232020,-166.66,0.00014362,2]
[408518683,1773814232030,-645.0,0.00014372,2]
[408518684,1773814232039,-500.0,0.00014552,2]
[408518685,1773814232050,-1200.0,0.00014552,2]
[408518686,1773814232060,-1000.0,0.00014552,2]
[408518687,1773814232070,-500.0,0.00014571,2]
[408518688,1773814232079,-600.0,0.00014571,2]
[408518689,1773814232089,-195.0,0.00014571,2]
[408518690,1773814232098,-439.04,0.00014584,2]
[408518691,1773814232108,-166.66,0.00014641,2]
[408518692,1773814232120,-180.69534539,0.00014709,2]
[408518693,1773814232130,-152.0,0.00014751,4]
[408518694,1773814232140,-502.0,0.00014849,2]
[408518695,1773814232149,-150.0,0.00014855,2]
[408518696,1773814232158,-1000.0,0.00014856,2]
[408518697,1773814232167,-2500.0,0.00014856,2]
[408518698,1773814232177,-973.38,0.00014856,2]
[408518699,1773814232187,-25853.47801872,0.0001489,2]
[408518700,1773814232198,-172.22247734,0.000149,2]
[408518701,1773814232210,-3284.25477818,0.000149,2]
[408518702,1773814232223,-200.0,0.00014947,2]
[408518703,1773814232234,-500.0,0.00014947,2]
[408518704,1773814232245,-151.0,0.00014947,2]
[408518705,1773814232257,-151.0,0.00014947,2]
[408518706,1773814232267,-151.0,0.00014947,2]
[408518707,1773814232278,-151.0,0.00014947,2]
[408518708,1773814232288,-151.0,0.00014947,2]
[408518709,1773814232299,-153.61478955,0.00014947,2]
[408518710,1773814232309,-151.0,0.00014947,2]
[408518711,1773814232319,-165.99030755,0.00014947,2]
[408518712,1773814232328,-500.0,0.00014955,2]
[408518713,1773814232337,-500.0,0.00014955,2]
[408518714,1773814232347,-500.0,0.00014955,2]
[408518715,1773814232356,-500.0,0.00014955,2]
[408518716,1773814232365,-500.0,0.00014955,2]
[408518717,1773814232375,-537.19747563,0.00014955,2]
[408518718,1773814232385,-281.91083062,0.00014955,2]
[408518719,1773814232395,-500.0,0.00014955,2]
[408518720,1773814232405,-500.0,0.00014955,2]
[408518721,1773814232414,-500.0,0.00014955,2]
[408518722,1773814232425,-500.0,0.00014955,2]
[408518723,1773814232435,-4179.83871006,0.00015,7]
[408518724,1773814232453,-1280.48486981,0.00015,7]
[408518725,1773814232464,-250.0,0.00015,2]
[408518726,1773814232477,-476.7253859,0.00015055,2]
[408518730,1773814237738,-23.2746141,0.00015055,2]
[408518731,1773814237749,-500.0,0.00015055,2]
[408518732,1773814237760,-470.06690931,0.00015055,2]
[408518733,1773814237798,-29.93309069,0.00015055,2]
[408518734,1773814237807,-500.0,0.00015055,2]
[408518735,1773814237817,-500.0,0.00015055,2]
[408518736,1773814237827,-500.0,0.00015055,2]
[408518737,1773814237838,-500.0,0.00015055,2]
[408518738,1773814237848,-152.37,0.00015068,2]
[408518739,1773814237857,-200.0,0.00015089,2]
[408518740,1773814237867,-3284.25477811,0.00015233,2]
[408518741,1773814237877,-2000.0,0.00015293,2]
[408518742,1773814237887,-7115.44213067,0.00015294,2]
[408518743,1773814237900,-500.03289567,0.00015294,2]
[408518744,1773814237912,-791.80938812,0.00015294,2]
[408518745,1773814237924,-18.1075023,0.00015294,2]
[408518746,1773814237936,-258.05938162,0.00015294,2]
[408518747,1773814237946,-500.0,0.00015294,2]
[408518748,1773814237956,-500.0,0.00015294,2]
[408518749,1773814237966,-500.0,0.00015294,2]
[408518750,1773814237975,-500.0,0.00015294,2]
[408518751,1773814237986,-500.0,0.00015294,2]
[408518752,1773814237997,-500.0,0.00015294,2]
[408518753,1773814238007,-500.0,0.00015294,2]
[408518754,1773814238017,-340.57196784,0.00015294,2]
[408518755,1773814238030,-191.90065138,0.00015294,2]
[408518756,1773814238041,-298.32557378,0.00015294,2]
[408518757,1773814238053,-201.67442622,0.00015294,2]
[408518758,1773814238063,-500.0,0.00015294,2]
[408518759,1773814238073,-750.0,0.00015294,2]
[408518760,1773814238083,-500.0,0.00015294,2]
[408518761,1773814238092,-50.54066911,0.00015294,2]
[408518762,1773814238119,-449.45933089,0.00015294,2]
[408518763,1773814238129,-90.47617913,0.00015294,2]
[408518764,1773814238140,-550.49052912,0.00015294,2]
[408518765,1773814238152,-109.03329175,0.00015294,2]
[408518766,1773814238162,-500.0,0.00015294,2]
[408518767,1773814238172,-500.0,0.00015294,2]
[408518768,1773814238182,-750.0,0.00015294,2]
[408518769,1773814238191,-500.0,0.00015294,2]
[408518770,1773814238200,-500.0,0.00015294,2]
[408518771,1773814238213,-750.0,0.00015294,2]
[408518772,1773814238222,-500.0,0.00015294,2]
[408518773,1773814238231,-500.0,0.00015294,2]
[408518774,1773814238240,-750.0,0.00015294,2]
[408518775,1773814238251,-268.07906385,0.00015294,2]
[408518776,1773814238260,-500.0,0.00015294,2]
[408518777,1773814238269,-750.0,0.00015294,2]
[408518778,1773814238279,-500.0,0.00015294,2]
[408518779,1773814238289,-750.0,0.00015294,2]
[408518780,1773814238298,-500.0,0.00015294,2]
[408518781,1773814238308,-750.0,0.00015294,2]
[408518782,1773814238317,-500.0,0.00015294,2]
[408518783,1773814238326,-750.0,0.00015294,2]
[408518784,1773814238335,-500.0,0.00015294,2]
[408518785,1773814238344,-750.0,0.00015294,2]
[408518786,1773814238353,-500.0,0.00015294,2]
[408518787,1773814238363,-750.0,0.00015294,2]
[408518788,1773814238372,-642.37146389,0.00015294,2]
[408518789,1773814238381,-283.58812189,0.00015294,2]
[408518790,1773814238391,-250.0,0.00015294,2]
[408518791,1773814238400,-200.0,0.00015294,2]
[408518792,1773814238409,-250.0,0.00015294,2]
[408518793,1773814238418,-250.0,0.00015294,2]
[408518794,1773814238428,-250.0,0.00015294,2]
[408518795,1773814238438,-250.0,0.00015294,2]
[408518796,1773814238448,-250.0,0.00015294,2]
[408518797,1773814238456,-250.0,0.00015294,2]
[408518798,1773814238466,-250.0,0.00015294,2]
[408518799,1773814238475,-500.0,0.00015294,2]
[408518800,1773814238484,-43.74427701,0.00015294,2]
[408518801,1773814238495,-458.39392614,0.00015294,2]
[408518802,1773814238504,-151.0,0.00015294,2]
[408518803,1773814238513,-500.0,0.00015298,2]
[408518804,1773814238523,-162.36,0.00015299,2]
[408518805,1773814238532,-152.0,0.00015305,5]
[408518806,1773814238543,-197.15852225,0.00015349,2]
[408518807,1773814238552,-420.0,0.00015378,2]
[408518808,1773814238563,-309.0,0.00015412,2]
[408518809,1773814238573,-309.0,0.00015427,2]
[408518810,1773814238582,-309.0,0.00015438,2]
[408518811,1773814238593,-309.0,0.00015439,2]
[408518812,1773814238603,-1680.0,0.00015441,2]
[408518813,1773814238613,-200.0,0.00015495,2]
[408518814,1773814238623,-309.0,0.00015498,2]
[408518815,1773814238633,-2440.84134565,0.00015507,2]
[408518816,1773814238737,-605.91046908,0.00015507,2]
[408518817,1773814240120,-953.24818527,0.00015507,2]
[408518818,1773814240131,-500.0,0.00015553,2]
[408518819,1773814240140,-3284.25477811,0.00015567,2]
[408518820,1773814240150,-590.17,0.00015592,2]
[408518821,1773814240160,-303.333797,0.00015637,2]
[408518822,1773814240169,-318.079821,0.0001568,7]
[408518823,1773814240179,-336.679915,0.0001568,7]
[408518824,1773814240189,-924.581,0.0001574,2]
[408518825,1773814240198,-1215.0,0.0001574,2]
[408518826,1773814240208,-6005.0,0.0001574,2]
[408518827,1773814240220,-2465.0,0.0001574,2]
[408518828,1773814240229,-176.719516,0.00015778,7]
[408518829,1773814240239,-2000.0,0.000158,2]
[408518830,1773814240248,-1900.0,0.000158,5]
[408518831,1773814240259,-168.0,0.00015803,2]
[408518832,1773814240268,-350.0,0.00015836,2]
[408518833,1773814240278,-152.0,0.00015859,6]
[408518834,1773814240290,-500.0,0.00015863,2]
[408518835,1773814240300,-218.47978124,0.00015878,2]
[408518836,1773814240309,-500.0,0.00015878,2]
[408518837,1773814240319,-2000.0,0.0001589,2]
[408518838,1773814240329,-4000.0,0.00015895,2]
[408518839,1773814240338,-459.76608007,0.000159,2]
[408518840,1773814240348,-2009.0,0.000159,2]
[408518841,1773814240357,-5000.0,0.000159,2]
[408518842,1773814240367,-3900.0,0.000159,5]
[408518843,1773814240376,-3284.25477811,0.000159,2]
[408518844,1773814240386,-370.497352,0.00015909,7]
[408518845,1773814240395,-289.137848,0.00015909,7]
[408518846,1773814240404,-500.0,0.00015922,2]
[408518847,1773814240414,-1200.0,0.00015922,2]
[408518848,1773814240423,-1000.0,0.00015922,2]
[408518849,1773814240432,-2344.7067256,0.00015924,2]
[408518850,1773814240442,-19638.83992192,0.00015924,2]
[408518851,1773814240451,-200.43524,0.0001594,2]
[408518852,1773814240461,-200.43524,0.0001594,2]
[408518853,1773814240471,-200.43524,0.0001594,2]
[408518854,1773814240481,-176.277175,0.00015964,7]
[408518855,1773814240491,-360.149333,0.00015964,7]
[408518856,1773814240500,-255.0,0.00015984,2]
[408518857,1773814240510,-1546.03086757,0.00015996,2]
[408518858,1773814240519,-678.30477945,0.00015999,2]
[408518860,1773814240528,-3005.0,0.00016,5]
[408518861,1773814240537,-95644.40677893,0.00016,2]
[408518862,1773814240549,-78228.43373349,0.00016,2]
[408518863,1773814240561,-20441.79696029,0.00016,2]
[408518864,1773814240572,-4966.48667921,0.00016,2]
[408518865,1773814240587,-4926.23470969,0.00016,2]
[408518866,1773814240598,-18385.88561907,0.00016,2]
[408518867,1773814240609,-857.81402166,0.00016,2]
[408518868,1773814240645,-1117.99168444,0.00016,2]
[408518869,1773814240656,-397.12140918,0.00016,2]
[408518870,1773814240667,-395.472,0.00016,2]
[408518871,1773814240679,-2090.40897658,0.00016,2]
[408518872,1773814240699,-373.5644,0.00016,2]
[408518883,1773814242650,-3757.0,0.0001574,2]
[408518884,1773814242660,-71386.26862746,0.00016,2]
[408518885,1773814242669,-500.0,0.00016024,2]
[408518886,1773814242678,-3296.0,0.00016036,5]
[408518887,1773814242688,-76326.9135752,0.00016036,2]
[408518888,1773814242698,-181.2110446,0.00016036,2]
[408518889,1773814242707,-179.905662,0.00016036,2]
[408518890,1773814242716,-152.16089471,0.00016036,2]
[408518891,1773814242727,-1910.91173419,0.00016036,2]
[408518892,1773814242736,-158.6765218,0.00016036,2]
[408518893,1773814242746,-204.1603316,0.00016043,2]
[408518894,1773814242755,-500.0,0.00016057,2]
[408518895,1773814242764,-587.08981475,0.00016057,2]
[408518896,1773814242773,-500.0,0.0001607,2]
[408518897,1773814242783,-500.0,0.00016099,2]
[408518898,1773814242791,-500.0,0.00016099,2]
[408518899,1773814242800,-781.86356408,0.000161,2]
[408518900,1773814242811,-2432.6275441,0.000161,2]
[408518901,1773814242822,-779.57288677,0.000161,2]
[408518902,1773814242833,-1897.46000004,0.000161,2]
[408518903,1773814242843,-258.05857218,0.000161,2]
[408518904,1773814242854,-9449.51153875,0.000161,2]
[408518905,1773814242917,-18171.60746483,0.000161,2]
[408518906,1773814242951,-167.72,0.00015725,2]
[408518907,1773814242960,-1944.96772881,0.000161,2]
[408518908,1773814242971,-6023.04433623,0.000161,2]
[408518909,1773814245570,-35855.08332976,0.000161,2]
[408518910,1773814245897,-444.58999998,0.000161,2]
[408518911,1773814245956,-27263.20215903,0.000161,2]
[408518969,1773814451021,2758.59,0.00032877,120]
[408518971,1773814950572,165.06,7.065e-05,2]
[408518972,1773814950802,165.06,7.437e-05,2]
[408518973,1773814951045,165.06,7.809e-05,2]
[408518974,1773814951163,165.06,8.181e-05,2]
[408518975,1773814951363,165.06,8.552e-05,2]
[408518976,1773814951553,165.06,8.924e-05,2]
[408518977,1773814951761,165.06,9.296e-05,2]
[408518978,1773814951965,165.06,9.668e-05,2]
[408518979,1773814952176,165.06,0.0001004,2]
[408518980,1773814952373,165.06,0.00010412,2]
[408518981,1773814952574,165.06,0.00010783,2]
[408518982,1773814952780,165.06,0.00011155,2]
[408518983,1773814952975,165.06,0.00011527,2]
[408518984,1773814953175,165.06,0.00011899,2]
[408518987,1773814998410,1299.09534374,0.0001,2]
[408518988,1773815071704,500.0,0.0003287,120]
[408518999,1773815431794,-585.43242494,0.00012255,2]
[408519000,1773815431806,-614.56757506,0.00012255,2]
[408519001,1773815431816,-250.0,0.00012255,2]
[408519002,1773815431826,-8646.23888259,0.00012256,2]
[408519003,1773815431835,-165.06,0.00012271,2]
[408519004,1773815431845,-253.50687783,0.00012313,2]
[408519005,1773815431855,-300.0,0.00012355,2]
[408519006,1773815431869,-300.0,0.00012355,2]
[408519007,1773815431878,-438.0,0.00012356,2]
[408519008,1773815431888,-167.07197699,0.00012357,2]
[408519009,1773815431898,-165.06,0.00012643,2]
[408519010,1773815431907,-165.06,0.00013014,2]
[408519011,1773815431917,-165.06,0.00013386,2]
[408519012,1773815431926,-336.00066483,0.00013481,2]
[408519013,1773815431936,-1722.45881604,0.00013481,2]
[408519014,1773815431945,-1680.0,0.00013481,2]
[408519015,1773815431954,-250.0,0.00013498,2]
[408519016,1773815431964,-300.0,0.00013558,2]
[408519017,1773815431973,-1852.42,0.00013573,2]
[408519018,1773815431982,-165.06,0.00013758,2]
[408519019,1773815431992,-166.96,0.00013985,2]
[408519021,1773815432001,-165.06,0.0001413,2]
[408519022,1773815432010,-3240.0,0.00014315,2]
[408519024,1773815432020,-500.0,0.00014456,2]
[408519026,1773815432029,-900.0,0.00014456,2]
[408519028,1773815432039,-1000.0,0.00014456,2]
[408519030,1773815432047,-337.11259907,0.000146,2]
[408519032,1773815432056,-1181.3172,0.0001469,2]
[408519034,1773815432065,-496.5116,0.0001469,2]
[408519036,1773815432075,-1526.476,0.00014699,2]
[408519038,1773815432084,-150.0,0.00014729,2]
[408519040,1773815432094,-2828.76200159,0.0001473,2]
[408519041,1773815432103,-167.07197698,0.0001473,2]
[408519042,1773815432112,-17879.67022943,0.0001473,2]
[408519043,1773815432121,-200.0,0.00014781,2]
[408519044,1773815432130,-500.0,0.00014789,2]
[408519045,1773815432140,-500.0,0.00014789,2]
[408519046,1773815432149,-500.0,0.00014789,2]
[408519047,1773815432158,-500.0,0.00014789,2]
[408519048,1773815432167,-500.0,0.00014789,2]
[408519049,1773815432176,-500.0,0.00014789,2]
[408519050,1773815432185,-500.0,0.00014789,2]
[408519051,1773815432194,-289.3873478,0.00014789,2]
[408519052,1773815432203,-67570.26858297,0.0001479,2]